[Event "*** Titled Tuesday Blitz"]
[Site "Chess.com"]
[Date "2021.03.30"]
[Round "6"]
[White "GMJustin"]
[Black "AlexSuv"]
[Result "0-1"]
[WhiteElo "2290"]
[BlackElo "2546"]
[TimeControl "180+1"]
[EndTime "11:07:13 PDT"]
[Termination "AlexSuv won on time"]

1. d4 {[%clk 0:02:58.8]} 1... Nf6 {[%clk 0:02:59.6]} 2. c4 {[%clk 0:02:57.9]}
2... e6 {[%clk 0:03:00]} 3. Nf3 {[%clk 0:02:54.1]} 3... d5 {[%clk 0:02:58.4]} 4.
Nc3 {[%clk 0:02:44.8]} 4... Bb4 {[%clk 0:02:57.2]} 5. Bg5 {[%clk 0:02:36.9]}
5... h6 {[%clk 0:02:55.7]} 6. Bxf6 {[%clk 0:02:15.6]} 6... Qxf6 {[%clk
0:02:56.6]} 7. Qa4+ {[%clk 0:02:13.8]} 7... Nc6 {[%clk 0:02:55.9]} 8. e3 {[%clk
0:02:10.8]} 8... O-O {[%clk 0:02:49.7]} 9. Rc1 {[%clk 0:02:02.7]} 9... Bd7
{[%clk 0:02:48]} 10. Qc2 {[%clk 0:01:32.8]} 10... dxc4 {[%clk 0:02:27.2]} 11.
Bxc4 {[%clk 0:01:33.7]} 11... a6 {[%clk 0:02:26.5]} 12. O-O {[%clk 0:01:26.4]}
12... Rac8 {[%clk 0:02:16.6]} 13. Ne4 {[%clk 0:01:17.3]} 13... Qe7 {[%clk
0:02:15.8]} 14. a3 {[%clk 0:01:07.1]} 14... Bd6 {[%clk 0:02:13.8]} 15. b4 {[%clk
0:01:01.4]} 15... e5 {[%clk 0:01:55.9]} 16. dxe5 {[%clk 0:00:29.6]} 16... Nxe5
{[%clk 0:01:56.8]} 17. Nxe5 {[%clk 0:00:29.2]} 17... Bxe5 {[%clk 0:01:52.4]} 18.
Nc5 {[%clk 0:00:27.2]} 18... Bc6 {[%clk 0:01:47.5]} 19. f4 {[%clk 0:00:11.2]}
19... Bd6 {[%clk 0:01:35.6]} 20. Rce1 {[%clk 0:00:11.2]} 20... Rfe8 {[%clk
0:01:29.9]} 21. Qf5 {[%clk 0:00:08.9]} 21... Bxc5 {[%clk 0:01:24.1]} 22. bxc5
{[%clk 0:00:07.6]} 22... Be4 {[%clk 0:01:20.9]} 23. Qe5 {[%clk 0:00:04.4]} 23...
Qf8 {[%clk 0:01:01.1]} 24. Qc3 {[%clk 0:00:04.2]} 24... Rcd8 {[%clk 0:00:57.3]}
25. f5 {[%clk 0:00:04.3]} 25... Kh7 {[%clk 0:00:52.5]} 26. Kh1 {[%clk
0:00:03.4]} 26... f6 {[%clk 0:00:51]} 27. Be6 {[%clk 0:00:02.9]} 27... Bd5
{[%clk 0:00:49.4]} 28. e4 {[%clk 0:00:02.4]} 28... Bxe6 {[%clk 0:00:48.4]} 29.
fxe6 {[%clk 0:00:02.7]} 29... Rxe6 {[%clk 0:00:49.3]} 30. e5 {[%clk 0:00:02.9]}
30... Rde8 {[%clk 0:00:46.6]} 31. exf6 {[%clk 0:00:02.6]} 31... Rxe1 {[%clk
0:00:46.3]} 32. Rxe1 {[%clk 0:00:02.7]} 32... Rxe1+ {[%clk 0:00:46]} 33. Qxe1
{[%clk 0:00:02.7]} 33... Qxf6 {[%clk 0:00:46.4]} 34. Qe4+ {[%clk 0:00:02.5]}
34... Kh8 {[%clk 0:00:43.1]} 35. h3 {[%clk 0:00:02]} 35... c6 {[%clk 0:00:25.2]}
36. Kh2 {[%clk 0:00:01.8]} 36... Qf7 {[%clk 0:00:22.5]} 37. Qb4 {[%clk
0:00:01.6]} 37... Qc7+ {[%clk 0:00:21.6]} 38. g3 {[%clk 0:00:01.9]} 38... Kg8
{[%clk 0:00:22]} 39. h4 {[%clk 0:00:02.3]} 39... Qe7 {[%clk 0:00:20.5]} 40. Qc4+
{[%clk 0:00:02.4]} 40... Kf8 {[%clk 0:00:21]} 41. Qd4 {[%clk 0:00:02.5]} 41...
Qe2+ {[%clk 0:00:20.1]} 42. Kh3 {[%clk 0:00:02.4]} 42... Qe6+ {[%clk 0:00:20.3]}
43. Kh2 {[%clk 0:00:02.6]} 43... Kf7 {[%clk 0:00:21.2]} 44. Qf4+ {[%clk
0:00:02.3]} 44... Kg6 {[%clk 0:00:21.7]} 45. Qc7 {[%clk 0:00:02.1]} 45... Qb3
{[%clk 0:00:19.9]} 46. Qd6+ {[%clk 0:00:01.6]} 46... Kf5 {[%clk 0:00:19.8]} 47.
Qd7+ {[%clk 0:00:01.9]} 47... Kg6 {[%clk 0:00:16.8]} 48. Qe8+ {[%clk 0:00:02.2]}
48... Qf7 {[%clk 0:00:15.3]} 49. Qe4+ {[%clk 0:00:02.2]} 49... Qf5 {[%clk
0:00:14.9]} 50. Qe7 {[%clk 0:00:02.1]} 50... a5 {[%clk 0:00:10.2]} 51. Qxb7
{[%clk 0:00:02]} 51... Qxc5 {[%clk 0:00:10.4]} 52. Qd7 {[%clk 0:00:01.9]} 52...
Qc2+ {[%clk 0:00:10.1]} 53. Kh3 {[%clk 0:00:01.6]} 53... Qf5+ {[%clk 0:00:10.2]}
54. Qxf5+ {[%clk 0:00:01.7]} 54... Kxf5 {[%clk 0:00:11.1]} 0-1

[Event "*** Titled Tuesday Blitz"]
[Site "Chess.com"]
[Date "2021.03.30"]
[Round "6"]
[White "kflorian98"]
[Black "Mops_2004"]
[Result "0-1"]
[WhiteElo "2671"]
[BlackElo "2528"]
[TimeControl "180+1"]
[EndTime "11:07:19 PDT"]
[Termination "Mops_2004 won by resignation"]

1. c4 {[%clk 0:02:59.6]} 1... g6 {[%clk 0:02:59.3]} 2. Nc3 {[%clk 0:02:56.8]}
2... Bg7 {[%clk 0:02:59.4]} 3. d4 {[%clk 0:02:55.1]} 3... Nf6 {[%clk 0:02:59.1]}
4. Nf3 {[%clk 0:02:52.8]} 4... O-O {[%clk 0:02:57.9]} 5. e4 {[%clk 0:02:51.7]}
5... d6 {[%clk 0:02:58]} 6. Be2 {[%clk 0:02:51]} 6... e5 {[%clk 0:02:57]} 7. O-O
{[%clk 0:02:50.4]} 7... Nc6 {[%clk 0:02:56.8]} 8. d5 {[%clk 0:02:50.2]} 8... Ne7
{[%clk 0:02:56.8]} 9. Bg5 {[%clk 0:02:50.5]} 9... h6 {[%clk 0:02:34.8]} 10. Bxf6
{[%clk 0:02:49.1]} 10... Bxf6 {[%clk 0:02:34.4]} 11. b4 {[%clk 0:02:49.8]} 11...
Bg7 {[%clk 0:02:08.1]} 12. Nd2 {[%clk 0:02:49.2]} 12... f5 {[%clk 0:01:57.5]}
13. c5 {[%clk 0:02:48.8]} 13... Kh8 {[%clk 0:01:20.1]} 14. Nc4 {[%clk
0:02:47.7]} 14... a6 {[%clk 0:01:13.2]} 15. a4 {[%clk 0:02:42.2]} 15... Ng8
{[%clk 0:00:54.6]} 16. a5 {[%clk 0:02:38.6]} 16... Nf6 {[%clk 0:00:54.6]} 17.
cxd6 {[%clk 0:02:18.6]} 17... cxd6 {[%clk 0:00:55.5]} 18. Nb6 {[%clk 0:02:18.3]}
18... Rb8 {[%clk 0:00:55.5]} 19. Bd3 {[%clk 0:02:10.1]} 19... f4 {[%clk
0:00:49.6]} 20. Rc1 {[%clk 0:02:06.2]} 20... Bd7 {[%clk 0:00:41.5]} 21. Nxd7
{[%clk 0:02:05]} 21... Nxd7 {[%clk 0:00:40.5]} 22. Qa4 {[%clk 0:01:44.8]} 22...
f3 {[%clk 0:00:37.1]} 23. g3 {[%clk 0:01:44.5]} 23... h5 {[%clk 0:00:33.3]} 24.
Rfe1 {[%clk 0:01:35.9]} 24... h4 {[%clk 0:00:32.9]} 25. Rc2 {[%clk 0:01:31.5]}
25... hxg3 {[%clk 0:00:30.3]} 26. fxg3 {[%clk 0:01:30]} 26... Nf6 {[%clk
0:00:27.9]} 27. Nd1 {[%clk 0:01:28.9]} 27... Ng4 {[%clk 0:00:24.2]} 28. Nf2
{[%clk 0:01:28.7]} 28... Nxf2 {[%clk 0:00:23.8]} 29. Kxf2 {[%clk 0:01:27]} 29...
g5 {[%clk 0:00:23.2]} 30. Rec1 {[%clk 0:01:20.3]} 30... Rf7 {[%clk 0:00:22.4]}
31. h3 {[%clk 0:01:14.4]} 31... g4 {[%clk 0:00:18.3]} 32. h4 {[%clk 0:00:59.1]}
32... Bh6 {[%clk 0:00:18.6]} 33. Rb1 {[%clk 0:00:53.3]} 33... Rc8 {[%clk
0:00:18]} 34. b5 {[%clk 0:00:51]} 34... axb5 {[%clk 0:00:17.8]} 35. Rxb5 {[%clk
0:00:51.9]} 35... Rxc2+ {[%clk 0:00:17.2]} 36. Qxc2 {[%clk 0:00:52.4]} 36... Rc7
{[%clk 0:00:17]} 37. Qb2 {[%clk 0:00:50.8]} 37... Qa8 {[%clk 0:00:13.5]} 38. Kg1
{[%clk 0:00:40.7]} 38... Qa7+ {[%clk 0:00:11.6]} 39. Kh2 {[%clk 0:00:41.1]}
39... Qe3 {[%clk 0:00:10.8]} 40. Bf1 {[%clk 0:00:33.2]} 40... Rc1 {[%clk
0:00:08.8]} 41. Rb3 {[%clk 0:00:27.4]} 41... Qe1 {[%clk 0:00:04.7]} 42. Rxb7
{[%clk 0:00:23.3]} 42... Qd2+ {[%clk 0:00:03.3]} 43. Qxd2 {[%clk 0:00:21.6]}
43... Bxd2 {[%clk 0:00:04.2]} 44. Rb8+ {[%clk 0:00:22.1]} 44... Kg7 {[%clk
0:00:04]} 45. Rb7+ {[%clk 0:00:23]} 45... Kg6 {[%clk 0:00:03.7]} 46. Rb2 {[%clk
0:00:23.9]} 46... Be3 {[%clk 0:00:03.2]} 47. Rb3 {[%clk 0:00:21.2]} 47... Bd2
{[%clk 0:00:03]} 48. Rd3 {[%clk 0:00:20.5]} 48... Bxa5 {[%clk 0:00:02.4]} 49.
Ra3 {[%clk 0:00:21.4]} 49... Bb6 {[%clk 0:00:02.5]} 50. Rb3 {[%clk 0:00:21]}
50... Bc5 {[%clk 0:00:03]} 51. Rxf3 {[%clk 0:00:21.5]} 51... gxf3 {[%clk
0:00:03]} 52. Kh3 {[%clk 0:00:20.4]} 52... Kh5 {[%clk 0:00:03.9]} 53. g4+ {[%clk
0:00:19.3]} 53... Kg6 {[%clk 0:00:03.7]} 54. Kg3 {[%clk 0:00:20.2]} 54... Kf6
{[%clk 0:00:04.6]} 55. g5+ {[%clk 0:00:21.1]} 55... Kf7 {[%clk 0:00:04.2]} 56.
Kg4 {[%clk 0:00:22]} 56... Rxf1 {[%clk 0:00:04]} 57. Kf5 {[%clk 0:00:22.5]}
57... Rg1 {[%clk 0:00:04.9]} 58. g6+ {[%clk 0:00:22.8]} 58... Rxg6 {[%clk
0:00:03.7]} 59. h5 {[%clk 0:00:23.7]} 59... Rf6+ {[%clk 0:00:04.4]} 60. Kg5
{[%clk 0:00:23.1]} 60... f2 {[%clk 0:00:05.3]} 61. h6 {[%clk 0:00:24]} 61...
f1=Q {[%clk 0:00:06.2]} 62. h7 {[%clk 0:00:24.9]} 62... Qf4+ {[%clk 0:00:06.6]}
0-1

[Event "*** Titled Tuesday Blitz"]
[Site "Chess.com"]
[Date "2021.03.30"]
[Round "6"]
[White "sorrm8thatscheckm8"]
[Black "Gentlejimmy7"]
[Result "1/2-1/2"]
[WhiteElo "2617"]
[BlackElo "2499"]
[TimeControl "180+1"]
[EndTime "11:07:23 PDT"]
[Termination "Game drawn - insufficient material"]

1. d4 {[%clk 0:03:00.9]} 1... Nf6 {[%clk 0:02:58.8]} 2. c4 {[%clk 0:02:58.9]}
2... g6 {[%clk 0:02:58.9]} 3. Nf3 {[%clk 0:02:58.9]} 3... Bg7 {[%clk 0:02:58.5]}
4. Nc3 {[%clk 0:02:58.6]} 4... d5 {[%clk 0:02:58.6]} 5. cxd5 {[%clk 0:02:58.4]}
5... Nxd5 {[%clk 0:02:59.5]} 6. e3 {[%clk 0:02:57.9]} 6... O-O {[%clk
0:02:59.3]} 7. Bd3 {[%clk 0:02:58]} 7... c5 {[%clk 0:02:58.8]} 8. h4 {[%clk
0:02:56]} 8... cxd4 {[%clk 0:02:54.8]} 9. Nxd4 {[%clk 0:02:51]} 9... Nc6 {[%clk
0:02:53]} 10. Nce2 {[%clk 0:02:47.2]} 10... Nxd4 {[%clk 0:02:52]} 11. Nxd4
{[%clk 0:02:44.1]} 11... Nb4 {[%clk 0:02:52.1]} 12. Bb1 {[%clk 0:02:39.3]} 12...
e5 {[%clk 0:02:51.8]} 13. Ne2 {[%clk 0:02:35.6]} 13... Qxd1+ {[%clk 0:02:51.8]}
14. Kxd1 {[%clk 0:02:34.5]} 14... Bg4 {[%clk 0:02:52.2]} 15. f3 {[%clk
0:02:33.3]} 15... Rfd8+ {[%clk 0:02:51.6]} 16. Ke1 {[%clk 0:02:33]} 16... Be6
{[%clk 0:02:51.8]} 17. Nc3 {[%clk 0:02:30.9]} 17... Nd3+ {[%clk 0:02:49.8]} 18.
Bxd3 {[%clk 0:02:29.6]} 18... Rxd3 {[%clk 0:02:50.7]} 19. h5 {[%clk 0:02:22]}
19... Bf8 {[%clk 0:02:50.3]} 20. hxg6 {[%clk 0:02:20.6]} 20... hxg6 {[%clk
0:02:50]} 21. Bd2 {[%clk 0:02:20.2]} 21... Bc5 {[%clk 0:02:41.9]} 22. Ne4 {[%clk
0:01:59.3]} 22... Bb6 {[%clk 0:02:22.6]} 23. Nf2 {[%clk 0:01:48.6]} 23... Rd7
{[%clk 0:02:18.5]} 24. Bc3 {[%clk 0:01:44.3]} 24... f6 {[%clk 0:02:17.7]} 25.
Ne4 {[%clk 0:01:42.3]} 25... Kg7 {[%clk 0:02:14.1]} 26. g4 {[%clk 0:01:38.2]}
26... Rd3 {[%clk 0:01:59.1]} 27. g5 {[%clk 0:01:35.7]} 27... Rxe3+ {[%clk
0:01:57]} 28. Kf1 {[%clk 0:01:20.8]} 28... Rxf3+ {[%clk 0:01:56.5]} 29. Kg2
{[%clk 0:01:21]} 29... Bd5 {[%clk 0:01:54.8]} 30. Kxf3 {[%clk 0:01:15.8]} 30...
f5 {[%clk 0:01:53.4]} 31. Bxe5+ {[%clk 0:01:11.8]} 31... Kf7 {[%clk 0:01:53.2]}
32. Rh7+ {[%clk 0:01:09.9]} 32... Ke6 {[%clk 0:01:53.1]} 33. Kf4 {[%clk
0:01:09.5]} 33... fxe4 {[%clk 0:01:48.7]} 34. Rd1 {[%clk 0:01:07]} 34... e3
{[%clk 0:01:46.6]} 35. Rg7 {[%clk 0:00:58.4]} 35... Rf8+ {[%clk 0:01:44.9]} 36.
Bf6 {[%clk 0:00:55.2]} 36... Rxf6+ {[%clk 0:01:42.4]} 37. gxf6 {[%clk
0:00:53.5]} 37... Kxf6 {[%clk 0:01:43.3]} 38. Rxd5 {[%clk 0:00:37.7]} 38... Kxg7
{[%clk 0:01:41.9]} 39. Rd7+ {[%clk 0:00:33.3]} 39... Kf6 {[%clk 0:01:42]} 40.
Kf3 {[%clk 0:00:33.9]} 40... g5 {[%clk 0:01:36.2]} 41. Rxb7 {[%clk 0:00:33.2]}
41... g4+ {[%clk 0:01:35]} 42. Ke2 {[%clk 0:00:31.6]} 42... g3 {[%clk 0:01:33]}
43. Rb8 {[%clk 0:00:29.2]} 43... Ke5 {[%clk 0:01:30.2]} 44. Rf8 {[%clk
0:00:25.4]} 44... Ke4 {[%clk 0:01:27.9]} 45. Rf3 {[%clk 0:00:23.8]} 45... Bd4
{[%clk 0:01:22.1]} 46. b3 {[%clk 0:00:20.6]} 46... Be5 {[%clk 0:01:21]} 47.
Rxe3+ {[%clk 0:00:20.8]} 47... Kd4 {[%clk 0:01:21.4]} 48. Rd3+ {[%clk
0:00:18.5]} 48... Kc5 {[%clk 0:01:19.9]} 49. Kf3 {[%clk 0:00:17.7]} 49... Kb4
{[%clk 0:01:19.6]} 50. a4 {[%clk 0:00:17.1]} 50... a5 {[%clk 0:01:18.2]} 51. Kg2
{[%clk 0:00:16.6]} 51... Bc3 {[%clk 0:01:18.5]} 52. Kxg3 {[%clk 0:00:14.8]}
52... Kxb3 {[%clk 0:01:18]} 53. Kf3 {[%clk 0:00:15.4]} 53... Kc2 {[%clk
0:01:06.5]} 54. Ke4 {[%clk 0:00:14.4]} 54... Kb3 {[%clk 0:00:56.9]} 55. Kd5
{[%clk 0:00:11.5]} 55... Kb4 {[%clk 0:00:57.2]} 56. Ke4 {[%clk 0:00:10.7]} 56...
Kc4 {[%clk 0:00:55.2]} 57. Rf3 {[%clk 0:00:09.5]} 57... Kb4 {[%clk 0:00:47.2]}
58. Kd3 {[%clk 0:00:09.4]} 58... Kb3 {[%clk 0:00:44.3]} 59. Rf4 {[%clk
0:00:05.3]} 59... Bb4 {[%clk 0:00:44.1]} 60. Re4 {[%clk 0:00:04.5]} 60... Kxa4
{[%clk 0:00:44.1]} 61. Kc4 {[%clk 0:00:04.8]} 61... Ka3 {[%clk 0:00:43.5]} 62.
Re1 {[%clk 0:00:03.6]} 62... Kb2 {[%clk 0:00:43.4]} 63. Re2+ {[%clk 0:00:03.3]}
63... Kc1 {[%clk 0:00:37.5]} 64. Kb5 {[%clk 0:00:03.1]} 64... Bd2 {[%clk
0:00:36.1]} 65. Re4 {[%clk 0:00:02.8]} 65... Kc2 {[%clk 0:00:35.9]} 66. Ra4
{[%clk 0:00:03.3]} 66... Bb4 {[%clk 0:00:35.1]} 67. Kc4 {[%clk 0:00:02.8]} 67...
Kb2 {[%clk 0:00:34.6]} 68. Rxb4+ {[%clk 0:00:01.8]} 68... axb4 {[%clk
0:00:34.3]} 69. Kxb4 {[%clk 0:00:02.7]} 1/2-1/2

[Event "*** Titled Tuesday Blitz"]
[Site "Chess.com"]
[Date "2021.03.30"]
[Round "6"]
[White "hypert"]
[Black "QuintilianoR"]
[Result "1/2-1/2"]
[WhiteElo "2534"]
[BlackElo "2718"]
[TimeControl "180+1"]
[EndTime "11:07:25 PDT"]
[Termination "Game drawn - insufficient material"]

1. e4 {[%clk 0:03:00.3]} 1... c5 {[%clk 0:02:58.7]} 2. Nc3 {[%clk 0:03:01.2]}
2... Nc6 {[%clk 0:02:57]} 3. Nf3 {[%clk 0:03:00.7]} 3... e5 {[%clk 0:02:56.2]}
4. Bc4 {[%clk 0:02:58.7]} 4... Be7 {[%clk 0:02:54.3]} 5. d3 {[%clk 0:02:58.8]}
5... d6 {[%clk 0:02:53.4]} 6. Nd2 {[%clk 0:02:58.6]} 6... Nf6 {[%clk 0:02:53.1]}
7. Nf1 {[%clk 0:02:58.9]} 7... Bg4 {[%clk 0:02:52.6]} 8. Qd2 {[%clk 0:02:57.1]}
8... O-O {[%clk 0:02:51.4]} 9. Ne3 {[%clk 0:02:57]} 9... Be6 {[%clk 0:02:51.9]}
10. Ncd5 {[%clk 0:02:50.4]} 10... a6 {[%clk 0:02:45]} 11. a4 {[%clk 0:02:46.6]}
11... Rb8 {[%clk 0:02:44.1]} 12. O-O {[%clk 0:02:43]} 12... b5 {[%clk
0:02:43.4]} 13. Nxf6+ {[%clk 0:02:38.3]} 13... Bxf6 {[%clk 0:02:42.3]} 14. axb5
{[%clk 0:02:38.5]} 14... axb5 {[%clk 0:02:43.2]} 15. Bd5 {[%clk 0:02:38.8]}
15... Ne7 {[%clk 0:02:33.6]} 16. Qe2 {[%clk 0:02:20.2]} 16... Qd7 {[%clk
0:02:23.8]} 17. Bd2 {[%clk 0:02:15.3]} 17... g6 {[%clk 0:02:22.4]} 18. Ra6
{[%clk 0:02:11.3]} 18... Bxd5 {[%clk 0:02:12.8]} 19. Nxd5 {[%clk 0:02:03.4]}
19... Nxd5 {[%clk 0:02:12.1]} 20. exd5 {[%clk 0:02:04.3]} 20... Ra8 {[%clk
0:02:11.8]} 21. Rfa1 {[%clk 0:01:57.8]} 21... Qb7 {[%clk 0:02:10.1]} 22. Rxa8
{[%clk 0:01:43.6]} 22... Rxa8 {[%clk 0:02:11]} 23. Rxa8+ {[%clk 0:01:43.2]}
23... Qxa8 {[%clk 0:02:11.9]} 24. c4 {[%clk 0:01:43.3]} 24... Qa1+ {[%clk
0:01:59.8]} 25. Be1 {[%clk 0:01:42.6]} 25... bxc4 {[%clk 0:01:55.9]} 26. dxc4
{[%clk 0:01:42.1]} 26... e4 {[%clk 0:00:57.1]} 27. Qxe4 {[%clk 0:01:34.6]} 27...
Bxb2 {[%clk 0:00:55.6]} 28. Kf1 {[%clk 0:01:26.9]} 28... Bc3 {[%clk 0:00:54.1]}
29. Qe3 {[%clk 0:01:23.5]} 29... Bxe1 {[%clk 0:00:52.8]} 30. Qxe1 {[%clk
0:01:23.5]} 30... Qd4 {[%clk 0:00:53.4]} 31. Qe2 {[%clk 0:01:18.1]} 31... Qa1+
{[%clk 0:00:39.9]} 32. Qe1 {[%clk 0:01:17.4]} 32... Qa2 {[%clk 0:00:40.4]} 33.
Qe4 {[%clk 0:01:11]} 33... Qd2 {[%clk 0:00:34.1]} 34. g3 {[%clk 0:01:09.2]}
34... Qc3 {[%clk 0:00:22.1]} 35. h4 {[%clk 0:01:08.4]} 35... h5 {[%clk
0:00:22.4]} 36. Ke2 {[%clk 0:01:04.3]} 36... Kf8 {[%clk 0:00:22.5]} 37. Kf1
{[%clk 0:01:00.8]} 37... Qc1+ {[%clk 0:00:21.9]} 38. Kg2 {[%clk 0:01:00.5]}
38... Qc3 {[%clk 0:00:22.3]} 39. Qf4 {[%clk 0:01:00.4]} 39... Ke7 {[%clk
0:00:21.3]} 40. Qg5+ {[%clk 0:00:59.5]} 40... Qf6 {[%clk 0:00:17.3]} 41. Qe3+
{[%clk 0:00:56.6]} 41... Kd7 {[%clk 0:00:17.3]} 42. Qa3 {[%clk 0:00:55.7]} 42...
Qe5 {[%clk 0:00:16.9]} 43. Qa7+ {[%clk 0:00:55.3]} 43... Ke8 {[%clk 0:00:17.2]}
44. Qb8+ {[%clk 0:00:54.2]} 44... Ke7 {[%clk 0:00:17.7]} 45. Qc7+ {[%clk
0:00:54.2]} 45... Kf8 {[%clk 0:00:18.4]} 46. Qd7 {[%clk 0:00:52.6]} 46... Kg7
{[%clk 0:00:17.2]} 47. Qa4 {[%clk 0:00:49.4]} 47... Qe4+ {[%clk 0:00:17]} 48.
Kg1 {[%clk 0:00:48.7]} 48... Qe1+ {[%clk 0:00:16.9]} 49. Kg2 {[%clk 0:00:48.3]}
49... Qe4+ {[%clk 0:00:16.8]} 50. Kg1 {[%clk 0:00:45.8]} 50... Qd4 {[%clk
0:00:17]} 51. Qc2 {[%clk 0:00:44.6]} 51... Qe5 {[%clk 0:00:17.3]} 52. Kg2 {[%clk
0:00:44.1]} 52... f5 {[%clk 0:00:17.6]} 53. Qd3 {[%clk 0:00:44]} 53... Kf6
{[%clk 0:00:17.8]} 54. Kf3 {[%clk 0:00:43.7]} 54... Kf7 {[%clk 0:00:16.3]} 55.
Kg2 {[%clk 0:00:42]} 55... Qe4+ {[%clk 0:00:16.3]} 56. Qxe4 {[%clk 0:00:38.2]}
56... fxe4 {[%clk 0:00:16.5]} 57. f3 {[%clk 0:00:34.9]} 57... Kf6 {[%clk
0:00:16.7]} 58. fxe4 {[%clk 0:00:27.4]} 58... Ke5 {[%clk 0:00:17]} 59. Kf3
{[%clk 0:00:27.5]} 59... Kd4 {[%clk 0:00:17.7]} 60. Kf4 {[%clk 0:00:26.6]} 60...
Kxc4 {[%clk 0:00:18.3]} 61. Ke3 {[%clk 0:00:21.5]} 61... Kb5 {[%clk 0:00:17.2]}
62. Kd3 {[%clk 0:00:20.6]} 62... Kb6 {[%clk 0:00:17.6]} 63. Kc4 {[%clk
0:00:20.4]} 63... Kc7 {[%clk 0:00:18]} 64. e5 {[%clk 0:00:20.6]} 64... dxe5
{[%clk 0:00:18.1]} 65. Kxc5 {[%clk 0:00:21]} 65... Kd7 {[%clk 0:00:18.7]} 66. d6
{[%clk 0:00:20.2]} 66... e4 {[%clk 0:00:19.2]} 67. Kd4 {[%clk 0:00:19.2]} 67...
Kxd6 {[%clk 0:00:20.1]} 68. Kxe4 {[%clk 0:00:19.5]} 68... Ke6 {[%clk 0:00:21]}
69. Kf4 {[%clk 0:00:19.5]} 69... Kf6 {[%clk 0:00:21.6]} 70. g4 {[%clk
0:00:19.8]} 70... hxg4 {[%clk 0:00:21.9]} 71. Kxg4 {[%clk 0:00:19.7]} 71... Kg7
{[%clk 0:00:22.5]} 72. h5 {[%clk 0:00:20]} 72... Kh6 {[%clk 0:00:22.1]} 73. hxg6
{[%clk 0:00:19.6]} 73... Kxg6 {[%clk 0:00:23]} 1/2-1/2

[Event "*** Titled Tuesday Blitz"]
[Site "Chess.com"]
[Date "2021.03.30"]
[Round "6"]
[White "Olga_Zhuravleva"]
[Black "Terao90"]
[Result "1-0"]
[WhiteElo "2339"]
[BlackElo "2539"]
[TimeControl "180+1"]
[EndTime "11:07:27 PDT"]
[Termination "Olga_Zhuravleva won on time"]

1. e4 {[%clk 0:03:00.9]} 1... c5 {[%clk 0:02:59.9]} 2. Nf3 {[%clk 0:03:00.9]}
2... Nc6 {[%clk 0:02:59.6]} 3. Nc3 {[%clk 0:03:00.3]} 3... g6 {[%clk 0:02:59.5]}
4. d4 {[%clk 0:03:00]} 4... cxd4 {[%clk 0:03:00.4]} 5. Nxd4 {[%clk 0:03:00.7]}
5... Bg7 {[%clk 0:03:00.2]} 6. Nb3 {[%clk 0:03:01.4]} 6... d6 {[%clk 0:02:59.3]}
7. Be2 {[%clk 0:03:01.7]} 7... Nf6 {[%clk 0:02:58.7]} 8. O-O {[%clk 0:02:59.5]}
8... O-O {[%clk 0:02:58.6]} 9. Re1 {[%clk 0:02:59.4]} 9... Be6 {[%clk 0:02:58]}
10. Bf1 {[%clk 0:02:59.5]} 10... Na5 {[%clk 0:02:54.8]} 11. Bg5 {[%clk
0:02:53.2]} 11... h6 {[%clk 0:02:34.4]} 12. Bh4 {[%clk 0:02:50.2]} 12... Re8
{[%clk 0:02:23]} 13. Nd5 {[%clk 0:02:48]} 13... g5 {[%clk 0:02:18.7]} 14. Bg3
{[%clk 0:02:47.2]} 14... Rc8 {[%clk 0:02:18.7]} 15. c3 {[%clk 0:02:46.7]} 15...
Nc4 {[%clk 0:02:11.4]} 16. Rb1 {[%clk 0:02:38.1]} 16... a6 {[%clk 0:02:06.1]}
17. Kh1 {[%clk 0:02:31]} 17... b5 {[%clk 0:01:27]} 18. f4 {[%clk 0:02:29.8]}
18... Bxd5 {[%clk 0:01:19.1]} 19. exd5 {[%clk 0:02:28.8]} 19... Qb6 {[%clk
0:01:19.7]} 20. fxg5 {[%clk 0:02:19.2]} 20... hxg5 {[%clk 0:01:18.4]} 21. Qf3
{[%clk 0:02:07.3]} 21... Qb7 {[%clk 0:01:06.9]} 22. Red1 {[%clk 0:02:06.3]}
22... g4 {[%clk 0:00:47.5]} 23. Qd3 {[%clk 0:01:57.8]} 23... Ne5 {[%clk
0:00:44.2]} 24. Bxe5 {[%clk 0:01:42.3]} 24... dxe5 {[%clk 0:00:45.1]} 25. Qf5
{[%clk 0:01:42.2]} 25... e4 {[%clk 0:00:43.4]} 26. Be2 {[%clk 0:01:13.6]} 26...
g3 {[%clk 0:00:42.5]} 27. hxg3 {[%clk 0:01:09.8]} 27... Qc7 {[%clk 0:00:40.6]}
28. Qg5 {[%clk 0:00:56.5]} 28... Nh7 {[%clk 0:00:33.8]} 29. Qg4 {[%clk
0:00:52.6]} 29... Nf6 {[%clk 0:00:34.2]} 30. Qh4 {[%clk 0:00:50]} 30... Qe5
{[%clk 0:00:33.2]} 31. Rd4 {[%clk 0:00:34.7]} 31... Rcd8 {[%clk 0:00:26.3]} 32.
Rbd1 {[%clk 0:00:34.3]} 32... Rxd5 {[%clk 0:00:26.5]} 33. Rxd5 {[%clk
0:00:33.5]} 33... Nxd5 {[%clk 0:00:27.4]} 34. Nd4 {[%clk 0:00:31]} 34... Nf6
{[%clk 0:00:22.4]} 35. Rf1 {[%clk 0:00:28.9]} 35... e6 {[%clk 0:00:22.4]} 36. g4
{[%clk 0:00:23]} 36... Nh7 {[%clk 0:00:18.3]} 37. Nc6 {[%clk 0:00:18.9]} 37...
Qg5 {[%clk 0:00:16.6]} 38. Qf2 {[%clk 0:00:18.7]} 38... Nf6 {[%clk 0:00:14.4]}
39. Kg1 {[%clk 0:00:12.9]} 39... e3 {[%clk 0:00:14]} 40. Qf3 {[%clk 0:00:11.6]}
40... Rf8 {[%clk 0:00:10.6]} 41. Ne7+ {[%clk 0:00:09.4]} 41... Kh8 {[%clk
0:00:08.1]} 42. Qh3+ {[%clk 0:00:09.9]} 42... Nh7 {[%clk 0:00:08.4]} 43. Nc6
{[%clk 0:00:09.3]} 43... Kg8 {[%clk 0:00:05.3]} 44. Bd3 {[%clk 0:00:07.4]} 44...
f5 {[%clk 0:00:02.3]} 45. gxf5 {[%clk 0:00:05.9]} 45... exf5 {[%clk 0:00:03.2]}
46. Bxf5 {[%clk 0:00:05.9]} 46... Nf6 {[%clk 0:00:02.8]} 47. Be6+ {[%clk
0:00:04.8]} 47... Rf7 {[%clk 0:00:02.2]} 48. Bxf7+ {[%clk 0:00:04.4]} 48... Kxf7
{[%clk 0:00:03.1]} 49. Qc8 {[%clk 0:00:03.6]} 49... e2 {[%clk 0:00:03.1]} 50.
Qc7+ {[%clk 0:00:03.4]} 50... Kg6 {[%clk 0:00:03.3]} 51. Re1 {[%clk 0:00:03.3]}
51... Qe3+ {[%clk 0:00:03.7]} 52. Kh1 {[%clk 0:00:02.2]} 52... Qf2 {[%clk
0:00:04.2]} 53. Ne5+ {[%clk 0:00:01.9]} 53... Kf5 {[%clk 0:00:04.5]} 54. Nf3
{[%clk 0:00:02.1]} 54... Ne4 {[%clk 0:00:04.8]} 55. Qe5+ {[%clk 0:00:01.8]}
55... Kg6 {[%clk 0:00:04]} 56. Qxe4+ {[%clk 0:00:02]} 1-0